bitfinex-derivatives/quotes_ETHF0:USTF0_20240924
["timestamp","ask_amount","ask_price","bid_price","bid_amount"]
[1727190146640,3.68672813,2610.5,2610.3,0.8856]
[1727190146825,2.69,2610.4,2610.2,3.2078]
[1727190147024,2.69,2610.4,2610.0,3.00671]
[1727190147229,0.99719686,2610.3,2610.1,0.38309]
[1727190147424,0.99719686,2610.3,2610.2,3.59089]
[1727190147628,4.18686696,2610.6,2610.2,3.59089]
[1727190147629,0.99719686,2610.4,2610.2,3.59089]
[1727190147939,0.99719686,2610.4,2610.1,3.2078]
[1727190147940,0.99719686,2610.3,2610.1,3.2078]
[1727190148134,0.99719686,2610.3,2610.1,0.3831]
[1727190148332,0.99719686,2610.3,2610.1,3.2078]
[1727190148536,2.69,2610.2,2610.1,3.5909]
[1727190148724,2.69,2610.2,2610.1,3.2078]
[1727190149338,2.69,2610.2,2610.1,0.3831]
[1727190149935,2.69,2610.2,2610.1,3.5909]
[1727190150437,2.69,2610.2,2610.0,2.12111]
[1727190150626,2.69,2610.2,2610.1,0.3831]
[1727190150824,0.99719686,2610.4,2610.0,1.738]
[1727190151034,0.99719686,2610.6,2610.1,10.20337643]
[1727190151235,0.99719686,2610.8,2610.7,0.38301]
[1727190151540,3.68719686,2610.9,2610.6,0.38302]
[1727190152530,3.68719686,2610.9,2610.6,2.12102]
[1727190153042,3.68719686,2610.9,2610.7,0.38301]
[1727190153636,3.68719686,2610.9,2610.6,1.738]
[1727190153941,3.68719686,2610.9,2610.7,0.383]
[1727190154237,3.68719686,2610.9,2610.8,0.383]
[1727190155443,0.99719686,2611.0,2610.9,0.38299]
[1727190155642,2.69,2611.1,2610.9,0.38299]
[1727190156039,1.88389686,2611.2,2611.0,0.38297]
[1727190156539,1.88389686,2611.2,2610.8,4.62498859]
[1727190156540,3.68719686,2611.1,2610.8,4.62498859]
[1727190156733,3.68719686,2611.1,2610.9,0.38299]
[1727190157440,4.82679686,2611.0,2610.7,0.383]
[1727190157635,2.69,2610.9,2610.7,0.383]
[1727190158745,2.38356696,2611.2,2611.1,0.38296]
[1727190158746,0.99719686,2611.2,2611.1,0.38296]
[1727190159046,0.99719686,2611.5,2611.1,11.17484383]
[1727190159247,1.92939686,2611.6,2611.2,0.95736]
[1727190159440,0.9322,2611.6,2611.5,0.3829]
[1727190159739,1.92939686,2611.6,2611.5,0.3829]
[1727190159939,1.92939686,2611.6,2611.3,4.13744383]
[1727190159940,8.44819686,2611.6,2611.3,4.13744383]
[1727190160140,6.28072,2611.4,2611.1,0.38295]
[1727190160444,2.69,2611.2,2610.7,3.59081]
[1727190160639,2.69,2610.9,2610.6,2.11202]
[1727190160844,2.69,2610.9,2610.6,1.729]
[1727190160845,3.07299,2610.9,2610.6,1.729]
[1727190161145,4.06968899,2610.9,2610.6,2.11202]
[1727190161442,3.68669899,2610.9,2610.6,4.9368]
[1727190161645,2.69,2610.9,2610.7,0.38301]
[1727190162440,0.99669899,2611.0,2610.9,0.38299]
[1727190162646,2.79209899,2611.1,2611.0,0.38297]
[1727190162947,2.79209899,2611.1,2610.6,5.89436]
[1727190162948,2.79209899,2611.1,2610.8,0.38299]
[1727190163147,2.79209899,2611.1,2610.7,4.33505059]
[1727190163148,0.99669899,2611.0,2610.9,0.38299]
[1727190163334,2.79209899,2611.1,2610.9,0.38299]
[1727190163533,0.99669899,2611.0,2610.9,0.38299]
[1727190163941,0.8632,2611.1,2611.0,0.38297]
[1727190164141,1.85989899,2611.1,2611.0,0.38297]
[1727190164336,2.41026696,2611.5,2611.0,15.02679708]
[1727190164535,0.99724726,2611.3,2611.2,3.59074]
[1727190164944,2.38256696,2611.6,2611.3,4.47657518]
[1727190164945,0.99749724,2611.4,2611.3,4.47657518]
[1727190165141,0.99749724,2611.6,2611.5,0.3829]
[1727190165335,0.99749724,2611.6,2611.3,0.38291]
[1727190165540,0.99749724,2611.4,2611.3,4.47657518]
[1727190165938,0.99777485,2611.4,2611.3,4.47657518]
[1727190166143,1.49686696,2611.6,2611.3,4.47657518]
[1727190166144,2.07133311,2611.6,2611.3,4.47657518]
[1727190166343,1.68844701,2611.5,2611.3,4.47657518]
[1727190166543,2.41026696,2611.5,2611.3,4.47657518]
[1727190167247,1.68845638,2611.4,2611.2,3.2078]
[1727190167449,2.95146638,2611.4,2611.2,3.2078]
[1727190167651,0.38293,2611.3,2611.2,3.2078]
[1727190167839,1.87979696,2611.3,2611.2,3.2078]
[1727190168040,1.87979696,2611.3,2611.1,1.729]
[1727190168041,0.38294,2611.2,2611.1,1.729]
[1727190168451,0.57453523,2611.2,2611.1,1.729]
[1727190170340,2.18741785,2611.2,2611.1,1.729]
[1727190170545,0.19159523,2611.2,2611.1,2.11196]
[1727190170741,2.18742966,2611.3,2611.1,2.11195]
[1727190170944,0.19160704,2611.2,2611.1,2.11195]
[1727190171148,2.18742966,2611.3,2611.1,2.11195]
[1727190171450,0.19160704,2611.2,2611.1,2.11195]
[1727190171650,0.19160704,2611.3,2611.1,2.11195]
[1727190171852,0.19160704,2611.2,2611.1,1.729]
[1727190172049,0.57454704,2611.2,2611.1,1.729]
[1727190173345,0.19160704,2611.2,2611.1,2.11196]
[1727190173540,1.69206756,2611.2,2611.1,1.729]
[1727190173747,1.5004778,2611.2,2611.1,1.729]
[1727190173941,1.5004778,2611.2,2611.1,2.11196]
[1727190173942,0.19160704,2611.2,2611.1,2.11196]
[1727190174146,0.19160704,2611.3,2611.1,2.11196]
[1727190174348,0.19160704,2611.2,2611.1,2.11196]
[1727190174549,0.19160704,2611.3,2611.1,2.11196]
[1727190175651,0.57453704,2611.3,2611.1,1.729]
[1727190175853,0.57454704,2611.2,2611.1,1.729]
[1727190177253,2.57036966,2611.2,2611.1,1.729]
[1727190177455,0.57454704,2611.2,2611.1,1.729]
[1727190178055,1.49284704,2611.2,2611.1,1.729]
[1727190178256,4.44603894,2611.2,2611.1,1.729]
[1727190179549,0.95745,2611.0,2610.3,3.2078]
[1727190179752,0.38304,2610.6,2610.4,0.38305]
[1727190179952,1.7314,2610.5,2610.4,6.12618807]
[1727190180254,1.7314,2610.5,2610.3,3.2078]
[1727190180255,0.38306,2610.4,2610.3,3.2078]
[1727190180454,5.00139075,2610.4,2610.3,3.2078]
[1727190180649,0.19166136,2610.4,2610.3,3.59087]
[1727190180857,1.7314,2610.5,2610.3,3.2078]
[1727190180858,4.30624161,2610.5,2610.3,3.2078]
[1727190181060,0.19166136,2610.4,2610.3,3.2078]
[1727190181246,3.73153025,2610.5,2610.3,3.2078]
[1727190181446,0.19166515,2610.4,2610.3,3.59087]
[1727190181757,0.19166515,2610.4,2610.3,3.2078]
[1727190181957,1.69078795,2610.4,2610.3,3.2078]
[1727190182163,0.57472515,2610.4,2610.3,3.2078]
[1727190182658,0.38309,2610.2,2609.9,0.38312]
[1727190182860,0.99925573,2610.0,2609.8,1.729]
[1727190183263,0.99925573,2610.0,2609.9,0.38313]
[1727190184167,0.99925573,2610.0,2609.9,8.43524477]
[1727190184462,0.99925573,2610.1,2610.0,0.38312]
[1727190184760,0.99925573,2610.1,2609.9,11.25991477]
[1727190184761,0.99925573,2610.2,2610.1,0.3831]
[1727190184954,0.99904313,2610.2,2610.1,0.3831]
[1727190185159,1.4988836,2610.4,2610.2,0.38309]
[1727190185352,1.4988836,2610.4,2610.3,0.38307]
[1727190185555,1.4988836,2610.5,2610.3,4.12962975]
[1727190185964,1.6905406,2610.5,2610.2,1.25968]
[1727190186171,0.99870347,2610.3,2610.2,0.8766]
[1727190186361,0.99870347,2610.3,2610.2,1.25969]
[1727190186667,0.99870347,2610.3,2610.2,9.07771282]
[1727190187261,0.99870347,2610.3,2610.2,8.69462282]
[1727190187569,0.99841079,2610.3,2610.2,9.07771282]
[1727190187763,0.99841079,2610.3,2610.2,5.24651282]
[1727190187959,1.8819536,2610.4,2610.2,3.98682282]
[1727190188154,0.38307,2610.3,2610.2,3.98682282]
[1727190188354,5.38362855,2610.3,2609.9,3.59093]
[1727190188555,0.99844343,2610.1,2609.9,3.59093]
[1727190188760,0.99844343,2610.1,2609.9,1.729]
[1727190188955,1.85604343,2610.1,2609.9,1.729]
[1727190189363,0.99844343,2610.0,2609.9,1.729]
[1727190189760,0.99844343,2610.0,2609.9,2.11213]
[1727190190263,0.99844343,2610.3,2610.2,0.38309]
[1727190190469,0.61044343,2610.6,2610.5,0.38304]
[1727190190768,1.4988836,2611.2,2611.1,0.38296]
[1727190191067,1.4988836,2611.2,2611.0,1.721]
[1727190191260,1.69048068,2611.2,2611.0,1.721]
[1727190191467,2.07343068,2611.2,2611.0,1.721]
[1727190191770,1.8818336,2611.2,2611.0,1.721]
[1727190192078,2.91345957,2611.1,2611.0,1.721]
[1727190192382,8.05630622,2611.1,2611.0,1.721]
[1727190192566,6.05617597,2611.1,2611.0,1.721]
[1727190193267,1.03161597,2611.1,2611.0,1.721]
[1727190193459,1.41457597,2611.1,2611.0,1.721]
[1727190194865,0.38299,2610.9,2610.8,3.2078]
[1727190195067,1.4981569,2610.9,2610.8,3.5908]
[1727190195268,1.4981569,2610.9,2610.8,3.2078]
[1727190195469,1.68978671,2610.9,2610.8,7.4212]
[1727190195667,1.4981569,2611.0,2610.9,0.38299]
[1727190195871,1.68977397,2611.0,2610.8,7.83442675]
[1727190196775,1.68977397,2611.0,2610.8,7.45143675]
[1727190196961,1.68977397,2611.0,2610.9,0.38299]
[1727190197469,1.4981569,2611.1,2611.0,0.38297]
[1727190197676,1.4981569,2611.1,2610.9,7.89999228]
[1727190197677,1.4981569,2611.2,2611.1,0.38296]
[1727190198065,1.4981569,2611.2,2611.1,3.59076]
[1727190198469,1.68975546,2611.3,2611.2,0.38294]
[1727190198672,1.4981569,2611.3,2611.2,0.38294]
[1727190198872,1.4981569,2611.3,2611.1,7.71383825]
[1727190199072,2.07268367,2611.3,2611.1,7.33088825]
[1727190199272,1.4981569,2611.3,2611.1,7.71383825]
[1727190199472,1.68975304,2611.3,2611.2,0.38294]
[1727190199670,1.4981569,2611.3,2611.1,7.71383825]
[1727190199879,1.4981569,2611.3,2611.2,0.38294]
[1727190200370,1.4981569,2611.3,2611.1,7.71383825]
[1727190201576,1.4981569,2611.3,2611.2,0.38294]
[1727190201577,1.68975083,2611.3,2611.2,0.38294]
[1727190202075,1.4981569,2611.4,2611.3,0.38293]
[1727190202774,1.68973173,2611.5,2611.3,13.83241937]
[1727190202962,1.4981569,2611.6,2611.5,0.3829]
[1727190203165,1.4981569,2611.6,2611.5,2.1039]
[1727190203366,1.4981569,2611.7,2611.6,4.74766703]
[1727190203668,1.4981569,2611.7,2611.6,4.21168]
[1727190203669,1.68971999,2611.7,2611.6,4.21168]
[1727190203869,1.68971999,2611.7,2611.6,4.74766703]
[1727190204075,4.37971999,2611.7,2611.6,4.36478703]
[1727190204375,3.26443309,2611.7,2611.5,1.721]
[1727190204568,0.96346309,2611.6,2611.5,1.721]
[1727190205074,1.34634309,2611.6,2611.5,1.721]
[1727190205281,0.96346309,2611.6,2611.5,1.721]
[1727190205470,2.46096355,2611.6,2611.5,1.721]
[1727190205666,0.96346309,2611.6,2611.5,1.721]
[1727190206277,2.46052751,2611.6,2611.5,1.721]
[1727190206576,0.96346309,2611.6,2611.5,1.721]
[1727190206774,1.34634309,2611.6,2611.5,1.721]
[1727190207169,0.3829,2611.5,2611.1,3.2078]
[1727190207364,3.07295,2611.2,2611.1,3.2078]
[1727190207574,3.07295,2611.2,2611.0,1.721]
[1727190207575,0.38296,2611.1,2611.0,1.721]
[1727190207875,1.32555792,2611.1,2611.0,1.721]
[1727190208678,5.15518103,2611.1,2610.6,3.2078]
[1727190208876,1.49578604,2610.9,2610.7,1.721]
[1727190209671,1.87876604,2611.0,2610.8,0.383]
[1727190210073,1.49578604,2611.0,2610.7,1.721]
[1727190210274,0.38305,2610.5,2610.3,3.59087]
[1727190210584,0.7759,2610.4,2610.3,4.9288]
[1727190210975,0.7759,2610.4,2610.3,5.31187]
[1727190211173,0.7759,2610.4,2610.3,4.9288]
[1727190211477,0.7759,2610.4,2610.1,1.721]
[1727190211478,0.38309,2610.3,2610.1,1.721]
[1727190211667,2.07038469,2610.3,2610.1,1.721]
[1727190211865,1.4956177,2610.2,2610.1,1.721]
[1727190212384,1.4956177,2610.3,2610.1,6.15014128]
[1727190212678,0.7759,2610.4,2610.1,6.15014128]
[1727190212873,0.7759,2610.4,2610.1,5.76704128]
[1727190213079,0.38309,2610.2,2610.1,1.721]
[1727190213573,2.07039803,2610.2,2609.9,1.721]
[1727190213782,0.38311,2610.1,2609.8,3.2078]
[1727190213974,0.38311,2610.1,2609.8,5.31195]
[1727190214280,0.38312,2610.0,2609.8,4.9288]
[1727190214476,1.4956177,2610.0,2609.8,1.721]
[1727190214781,1.4956177,2610.1,2609.8,1.721]
[1727190214981,0.38314,2609.9,2609.3,4.7241]
[1727190215179,0.7622,2609.8,2609.7,0.38316]
[1727190215378,0.7622,2609.8,2609.7,4.50907451]
[1727190215582,1.4956177,2610.2,2609.7,9.832]
[1727190215770,8.3691877,2610.4,2609.9,3.2078]
[1727190215972,5.4656177,2610.4,2609.9,3.2078]
[1727190216176,3.97,2610.4,2610.3,0.38307]
[1727190216572,3.97,2610.4,2610.2,0.38308]
[1727190216774,3.97,2610.4,2610.3,0.38307]
[1727190217073,3.97,2610.4,2610.2,0.38308]
[1727190218574,3.97,2610.4,2610.3,0.38307]
[1727190218772,3.97,2610.4,2610.0,5.66507949]
[1727190218974,1.4956177,2610.6,2610.5,0.38304]
[1727190219180,1.4956177,2610.6,2610.0,5.66507949]
[1727190219479,0.38301,2610.8,2610.4,0.38305]
[1727190219480,1.4956177,2610.7,2610.4,0.38305]
[1727190219678,1.4956177,2610.8,2610.5,4.9218]
[1727190219885,1.4956177,2611.1,2610.8,0.383]
[1727190220079,1.4956177,2611.3,2611.0,0.38297]
[1727190220281,2.07014509,2611.3,2610.9,4.47442208]
[1727190220587,0.38294,2611.2,2610.9,4.09144208]
[1727190220789,0.38296,2611.1,2610.9,4.09144208]
[1727190220971,0.38296,2611.1,2610.8,3.59079]
[1727190220972,0.9574,2611.1,2610.8,3.2078]
[1727190221176,0.9574,2611.1,2610.5,1.714]
[1727190221177,0.38299,2610.9,2610.6,0.38302]
[1727190221389,0.7355,2610.8,2610.6,0.38302]
[1727190221869,0.7355,2610.8,2610.5,1.714]
[1727190222583,1.4956177,2611.1,2610.7,0.38301]
[1727190222782,0.5959,2611.2,2610.9,0.38298]
[1727190223087,0.5959,2611.2,2611.0,0.38297]
[1727190223679,0.5959,2611.2,2611.1,0.38296]
[1727190224272,0.5959,2611.2,2611.0,0.38296]
[1727190224478,0.5959,2611.2,2611.1,0.38296]
[1727190226171,0.5959,2611.2,2610.8,4.71377942]
[1727190226376,0.5959,2611.2,2611.1,0.38296]
[1727190226985,0.5959,2611.2,2610.9,0.38297]
[1727190227288,0.5959,2611.2,2611.0,0.38296]
[1727190227589,0.5959,2611.2,2611.1,0.38296]
[1727190229783,0.5959,2611.2,2611.1,2.09696]
[1727190231183,0.5959,2611.2,2611.1,1.714]
[1727190231382,0.5959,2611.2,2611.1,2.09696]
[1727190231582,2.0915177,2611.2,2611.1,2.09696]
[1727190233090,2.0915177,2611.2,2611.1,1.714]
[1727190233588,2.0915177,2611.2,2611.1,2.09696]
[1727190234193,2.0915177,2611.2,2611.1,1.714]
[1727190234778,2.0915177,2611.2,2611.1,2.09696]
[1727190234982,0.5959,2611.2,2611.1,2.09696]
[1727190235183,2.0915177,2611.2,2611.1,1.714]
[1727190235388,2.28311934,2611.2,2611.1,1.714]
[1727190236087,1.17044164,2611.2,2611.1,1.714]
[1727190236294,2.12780164,2611.2,2611.1,1.714]
[1727190236488,0.38299,2610.9,2610.8,4.9218]
[1727190237095,0.5946,2611.0,2610.8,4.9218]
[1727190237295,0.38299,2610.9,2610.8,4.9218]
[1727190238293,0.95751,2610.8,2610.3,0.38306]
[1727190238490,1.496154,2610.6,2610.4,0.38305]
[1727190238691,2.07082944,2610.6,2610.4,0.38305]
[1727190238887,0.5946,2610.5,2610.2,4.9218]
[1727190239080,0.5946,2610.5,2610.4,0.38306]
[1727190239996,2.113154,2610.7,2610.4,2.69]
[1727190240200,2.113154,2610.7,2610.6,0.38303]
[1727190240495,1.496154,2610.8,2610.7,0.38301]
[1727190240696,1.496154,2610.9,2610.8,0.383]
[1727190240886,1.68776979,2611.0,2610.8,0.38299]
[1727190241090,1.496154,2611.0,2610.8,0.38299]
[1727190241299,1.68776697,2611.0,2610.8,0.38299]
[1727190241895,1.68776697,2611.0,2610.7,4.41815074]
[1727190242085,1.68776697,2611.0,2610.9,0.38299]
[1727190243299,1.68776697,2611.0,2610.8,5.30479]
[1727190244201,1.496154,2611.0,2610.8,5.30479]
[1727190244389,3.8304,2610.9,2610.8,2.66099]
[1727190244584,0.76413071,2610.9,2610.4,1.714]
[1727190244790,1.49527114,2611.0,2610.9,0.38299]
[1727190244992,2.11227114,2611.1,2611.0,0.38297]
[1727190245197,2.10817114,2611.2,2611.1,0.38296]
[1727190245389,1.49527114,2611.3,2611.2,0.38294]
[1727190245588,1.49527114,2611.6,2611.3,0.38293]
[1727190245794,1.49527114,2611.7,2611.6,0.38288]
[1727190245998,1.49527114,2611.8,2611.4,0.9383]
[1727190246295,1.49527114,2611.8,2611.2,2.47373]
[1727190246296,1.68682625,2611.8,2611.2,2.47373]
[1727190246596,1.49527114,2611.6,2611.3,4.03427501]
[1727190246794,0.38288,2611.6,2611.3,4.03427501]
[1727190246992,1.87815114,2611.7,2611.3,4.03427501]
[1727190247199,1.87815114,2611.7,2611.3,4.41719501]
[1727190247398,1.49527114,2611.7,2611.4,0.3829]
[1727190247696,1.68683472,2611.7,2611.3,4.03427501]
[1727190247899,1.49527114,2611.7,2611.6,0.38288]
[1727190248104,2.05807114,2611.8,2611.6,0.38288]
[1727190248301,0.5628,2611.8,2611.6,0.38288]
[1727190248499,0.5628,2611.8,2611.4,0.3829]
[1727190248691,2.05807114,2611.8,2611.3,4.03427501]
[1727190248998,0.5628,2611.8,2611.5,0.38289]
[1727190249198,2.05807114,2611.8,2611.5,0.38289]
[1727190249406,0.5628,2611.8,2611.5,0.38289]
[1727190249907,0.5628,2611.8,2611.6,0.38288]
[1727190250098,1.49527114,2611.9,2611.3,4.03427501]
[1727190250402,1.49527114,2611.9,2611.2,5.4008]
[1727190250403,1.49527114,2612.1,2611.8,0.38284]
[1727190250706,1.1564,2612.2,2611.9,0.38283]
[1727190250707,2.65167114,2612.2,2611.9,0.38283]
[1727190251000,1.49527114,2612.4,2612.0,3.2078]
[1727190251190,1.49527114,2612.5,2612.4,0.38277]
[1727190251393,4.70307114,2612.6,2612.4,0.38277]
[1727190251592,3.2078,2612.6,2612.4,0.38277]
[1727190251792,3.2078,2612.6,2612.3,0.38277]
[1727190252217,3.2078,2612.6,2612.1,9.26630872]
[1727190252218,3.2078,2612.6,2612.4,4.01259499]
[1727190252500,3.2078,2612.6,2612.2,0.38279]
[1727190252699,3.2078,2612.6,2612.2,4.39538499]
[1727190252892,3.2078,2612.6,2612.3,0.38278]
[1727190253096,3.2078,2612.6,2612.4,0.38276]
[1727190253302,3.2078,2612.6,2612.5,0.5735]
[1727190253496,3.2078,2612.6,2612.5,4.76765144]
[1727190253699,1.49527114,2612.9,2612.5,4.76765144]
[1727190253899,3.2078,2613.0,2612.8,0.3827]
[1727190254091,3.2078,2613.0,2612.9,0.38269]
[1727190254295,0.619,2613.5,2613.1,0.38266]
[1727190254504,0.619,2613.5,2613.2,1.707]
[1727190255307,1.00161,2613.5,2613.2,1.707]
[1727190255502,0.619,2613.5,2613.2,1.707]
[1727190255712,0.38266,2613.2,2612.9,3.2078]
[1727190256001,3.7697,2613.1,2612.8,1.706]
[1727190256196,0.5624,2613.0,2612.8,1.706]
[1727190256596,0.94508,2613.0,2612.8,1.706]
[1727190257306,0.38269,2612.9,2612.4,0.38276]
[1727190257495,0.94508,2613.0,2612.5,2.08875]
[1727190257697,0.94508,2613.0,2612.5,6.35629449]
[1727190257890,0.5624,2613.0,2612.5,6.35629449]
[1727190258092,0.5624,2613.0,2612.5,1.706]
[1727190258093,0.38269,2612.9,2612.5,1.706]
[1727190258310,0.5624,2613.0,2612.5,1.706]
[1727190258497,0.5624,2613.0,2612.5,2.08874]
[1727190258498,0.94508,2613.0,2612.5,2.08874]
[1727190260000,0.94508,2613.0,2612.5,5.29654]
[1727190260704,0.94508,2613.0,2612.5,2.08874]
[1727190261004,0.5624,2613.0,2612.5,1.706]
[1727190261211,5.31013025,2613.7,2612.5,1.706]
[1727190261212,6.20037,2613.5,2612.8,3.2078]
[1727190261406,6.20037,2613.5,2613.1,0.38266]
[1727190261407,3.8862,2613.5,2613.1,0.38266]
[1727190261702,0.97201,2613.5,2613.1,0.38266]
[1727190261907,0.97201,2613.5,2613.0,0.38267]
[1727190262409,4.17981,2613.5,2612.9,6.171301]
[1727190262703,3.7972,2613.5,2613.0,1.706]
[1727190263003,0.38263,2613.3,2613.0,1.706]
[1727190263195,0.38263,2613.4,2613.0,1.706]
[1727190264005,3.7972,2613.5,2613.0,1.706]
[1727190264209,0.38263,2613.4,2613.0,1.706]
[1727190264701,3.2078,2613.5,2613.1,4.33896773]
[1727190264909,0.9532,2613.6,2613.1,4.33896773]
[1727190265109,3.59041,2613.5,2613.0,1.706]
[1727190265605,0.38264,2613.3,2613.0,1.706]
[1727190265807,0.38263,2613.4,2612.9,1.1756]
[1727190266006,0.5805,2613.2,2613.0,1.706]
[1727190266203,0.5805,2613.2,2613.0,5.68583656]
[1727190266799,0.5805,2613.2,2613.0,1.706]
[1727190267899,3.2078,2613.5,2613.1,3.8272]
[1727190268104,0.38262,2613.4,2613.1,4.11173798]
[1727190268308,0.61,2613.4,2613.1,4.11173798]
[1727190269509,0.38263,2613.3,2613.1,4.11173798]
[1727190269695,0.61,2613.4,2613.1,4.11173798]
[1727190269696,0.38265,2613.2,2613.1,4.11173798]
[1727190269899,0.38265,2613.2,2612.9,1.706]
[1727190269900,0.38268,2613.0,2612.9,1.706]
[1727190270503,0.38269,2612.9,2612.8,1.706]
[1727190270701,4.18929,2612.9,2612.8,1.706]
[1727190272002,3.8066,2612.9,2612.8,1.706]
[1727190272307,4.18929,2612.9,2612.8,1.706]
[1727190273614,3.8066,2612.9,2612.8,1.706]
[1727190273914,4.18929,2612.9,2612.8,1.706]
[1727190274304,4.18929,2612.9,2612.5,0.94444]
[1727190274613,4.18929,2612.9,2612.6,2.08874]
[1727190275300,4.18929,2612.9,2612.6,1.706]
[1727190275499,3.8066,2612.9,2612.6,2.08872]
[1727190275899,3.8066,2612.9,2612.7,4.27750468]
[1727190276107,4.18929,2612.9,2612.7,4.27750468]
[1727190276712,3.8066,2612.9,2612.7,4.27750468]
[1727190277499,4.18929,2612.9,2612.7,4.27750468]
[1727190278703,3.8066,2612.9,2612.7,4.27750468]
[1727190280013,0.5988,2612.9,2612.7,4.27750468]
[1727190280307,0.98149,2612.9,2612.7,4.27750468]
[1727190280505,0.9815,2612.9,2612.7,4.27750468]
[1727190282312,0.5988,2612.9,2612.7,4.27750468]
[1727190282517,0.9815,2612.9,2612.7,4.27750468]
[1727190285218,0.9815,2612.9,2612.7,5.43410468]
[1727190285712,0.38271,2612.8,2612.7,5.43410468]
[1727190285910,0.5988,2612.9,2612.7,5.43410468]
[1727190286119,0.38271,2612.8,2612.7,5.43410468]
[1727190287607,0.5988,2612.9,2612.6,1.706]
[1727190287917,3.59052,2612.7,2612.6,1.706]
[1727190288315,3.2078,2612.7,2612.6,1.706]
[1727190288520,3.2078,2612.7,2612.6,2.08874]
[1727190288913,0.9815,2612.9,2612.6,12.64928704]
[1727190289115,0.9815,2612.9,2612.6,8.82208704]
[1727190289314,0.9815,2612.9,2612.6,9.20481704]
[1727190290022,0.38271,2612.8,2612.6,9.20481704]
[1727190290223,0.9815,2612.9,2612.6,9.20481704]
[1727190290411,0.38271,2612.8,2612.6,9.20481704]
[1727190290815,1.49527114,2613.0,2612.9,0.38269]
[1727190291012,1.49527114,2613.2,2613.1,0.38266]
[1727190291218,1.55792,2613.4,2613.1,0.38266]
[1727190291219,1.49527114,2613.3,2613.1,0.38266]
[1727190291422,1.49527114,2613.3,2613.1,4.13975486]
[1727190291423,2.06936019,2613.3,2613.1,4.13975486]
[1727190291721,1.87791114,2613.3,2613.0,0.95787]
[1727190292120,1.68671977,2613.2,2613.1,4.13975486]
[1727190292418,0.38266,2613.1,2613.0,0.5752]
[1727190292623,0.19144863,2613.1,2613.0,0.5752]
[1727190292919,0.38269,2612.9,2612.8,0.5513]
[1727190293108,0.38269,2612.9,2612.8,1.698]
[1727190293109,1.50086044,2612.9,2612.8,1.698]
[1727190293313,0.57417231,2612.9,2612.8,6.09637184]
[1727190294216,2.19160256,2613.1,2612.8,6.47908184]
[1727190294415,2.19160256,2613.1,2613.0,0.38268]
[1727190294618,0.19147231,2613.1,2613.0,0.38268]
[1727190294825,0.19147231,2613.1,2613.0,5.28133378]
[1727190295513,2.00013025,2613.2,2613.1,0.38266]
[1727190295514,2.19158057,2613.2,2613.1,0.38266]
[1727190295709,2.19158057,2613.2,2613.1,3.64466]
[1727190296518,2.00013025,2613.2,2613.1,3.64466]
[1727190297320,0.38267,2613.1,2612.9,3.07269]
[1727190297511,2.19158057,2613.1,2613.0,0.38268]
[1727190297913,2.19158057,2613.1,2613.0,4.44107424]
[1727190298529,2.00013025,2613.1,2613.0,4.44107424]
[1727190299021,0.19145032,2613.1,2613.0,4.44107424]
[1727190299618,2.57424057,2613.1,2613.0,4.05839424]
[1727190299814,2.19158057,2613.1,2613.0,4.44107424]
[1727190300022,0.19145032,2613.1,2613.0,4.44107424]
[1727190300535,0.57411032,2613.1,2613.0,4.05839424]
[1727190300829,0.38269,2613.0,2612.9,1.698]
[1727190301021,0.38269,2613.0,2612.8,1.31529]
[1727190301022,2.00555509,2613.0,2612.8,1.31529]
[1727190301226,6.51306875,2612.9,2612.5,3.69110696]
[1727190301529,6.51306875,2612.9,2612.7,4.44239915]
[1727190301530,0.19145032,2612.8,2612.7,4.44239915]
[1727190301716,0.19145032,2612.8,2612.6,2.08073]
[1727190302222,0.19145032,2612.8,2612.7,7.51511915]
[1727190302422,0.19145032,2612.8,2612.7,8.10131915]
[1727190302823,0.19145032,2612.8,2612.7,7.71859915]
[1727190303018,2.19706875,2612.8,2612.7,7.71859915]
[1727190303219,0.19145032,2612.8,2612.7,8.10131915]
[1727190303828,0.19145032,2612.8,2612.7,7.71859915]
[1727190304034,0.19145032,2612.8,2612.7,8.10131915]
[1727190304732,0.19145032,2612.8,2612.7,7.71859915]
[1727190305031,0.57416032,2612.8,2612.7,7.13239915]
[1727190305332,0.19145032,2612.8,2612.7,7.13239915]
[1727190305922,4.01865032,2612.8,2612.7,4.44239915]
[1727190306127,4.01865032,2612.8,2612.5,1.00110696]
[1727190306128,1.13526032,2612.8,2612.5,0.38275]
[1727190306334,0.19145032,2612.7,2612.6,0.38274]
[1727190306936,0.19145032,2612.7,2612.5,3.07274]
[1727190307230,2.19391201,2612.7,2612.6,0.38274]
[1727190307430,0.19148221,2612.7,2612.6,6.14463439]
[1727190307738,2.19391154,2612.8,2612.7,0.38272]
[1727190307928,2.19390638,2612.8,2612.7,3.07272]
[1727190308431,2.19390638,2612.8,2612.6,5.21029404]
[1727190308432,0.19147658,2612.8,2612.6,2.08073]
[1727190308632,2.00166948,2612.7,2612.6,2.08074]
[1727190308831,5.20946948,2612.9,2612.8,0.38271]
[1727190309026,5.40094023,2612.9,2612.8,0.38271]
[1727190309332,2.19314023,2612.9,2612.8,0.38271]
[1727190309730,2.19314023,2612.9,2612.6,4.388]
[1727190310038,2.19314023,2612.8,2612.7,4.82575997]
[1727190310221,2.00166948,2612.8,2612.7,4.82575997]
[1727190310427,3.43594827,2613.1,2612.8,0.38271]
[1727190310622,2.00101878,2612.9,2612.8,0.38271]
[1727190310826,2.19249159,2612.9,2612.8,0.38271]
[1727190311726,0.19147281,2612.9,2612.8,0.38271]
[1727190311922,0.38268,2613.0,2612.8,1.5336]
[1727190312124,0.57416243,2612.9,2612.7,4.82574997]
[1727190312323,2.19314975,2612.8,2612.6,1.698]
[1727190312527,2.19314975,2612.8,2612.6,0.38274]
[1727190312528,2.19314975,2612.7,2612.6,0.38274]
[1727190312833,2.19314975,2612.7,2612.6,3.07274]
[1727190313034,0.19147243,2612.7,2612.6,4.58132486]